bitfinex/quotes_ETHUSD_20250216
["timestamp","ask_amount","ask_price","bid_price","bid_amount"]
[1739737807957,0.7809,2684.4,2683.9,9.77278387]
[1739737809089,4.50616,2684.4,2683.9,9.77278387]
[1739737809299,0.7809,2684.4,2684.1,3.72556]
[1739737809458,0.7809,2684.4,2683.9,7.60457102]
[1739737809807,0.7809,2684.4,2684.1,3.72563]
[1739737810774,0.7809,2684.4,2684.0,3.72574]
[1739737813007,0.7809,2684.4,2684.1,3.72564]
[1739737813185,0.7809,2684.4,2684.0,3.72574]
[1739737813374,0.7809,2684.4,2684.0,3.7257]
[1739737813998,4.50613,2684.4,2683.9,6.04694387]
[1739737814297,4.49073,2684.2,2683.9,5.25834387]
[1739737814601,4.53730269,2684.2,2683.9,5.25834387]
[1739737814842,0.7651,2684.1,2683.4,13.53474387]
[1739737815122,3.72586,2684.0,2683.5,3.7264]
[1739737815672,0.7651,2684.1,2683.5,3.7264]
[1739737815673,0.7651,2684.1,2683.8,3.72605]
[1739737816423,0.7651,2683.9,2683.5,3.72644]
[1739737817596,0.7651,2683.9,2683.6,3.72626]
[1739737817903,0.7651,2683.9,2683.5,3.72642]
[1739737818618,0.7651,2683.9,2683.6,3.72631]
[1739737818979,0.7651,2683.9,2683.6,3.72627]
[1739737819209,0.7651,2683.9,2683.6,3.72626]
[1739737819412,0.7651,2683.9,2683.6,3.72622]
[1739737819907,0.7651,2683.9,2683.4,5.25834387]
[1739737820094,0.7651,2683.9,2683.7,3.7261]
[1739737821518,0.7651,2683.9,2683.4,6.80851826]
[1739737821721,0.7651,2684.4,2683.8,3.72596]
[1739737822012,3.72542,2684.3,2683.8,3.72604]
[1739737822196,3.72542,2684.3,2683.8,3.72599]
[1739737822519,4.846991,2684.3,2683.8,3.72599]
[1739737824287,4.846991,2684.3,2683.9,3.72587]
[1739737824592,1.121571,2684.3,2683.9,3.72585]
[1739737824793,0.7651,2684.4,2684.2,3.72549]
[1739737825096,0.7651,2684.4,2684.1,3.72561]
[1739737825598,0.7651,2684.4,2684.0,3.72573]
[1739737825806,3.7256,2684.2,2683.7,6.08174387]
[1739737826049,0.7727,2684.0,2683.7,8.98449387]
[1739737826176,0.7727,2684.0,2683.7,5.25834387]
[1739737828293,0.7727,2684.0,2683.7,8.98449387]
[1739737828516,0.7727,2684.0,2683.8,3.72606]
[1739737829324,0.7727,2684.0,2683.7,8.98450387]
[1739737829680,0.7727,2684.3,2683.9,3.72592]
[1739737832015,4.49808,2684.3,2683.8,3.72606]
[1739737832319,0.7727,2684.3,2683.8,3.72595]
[1739737832533,0.7727,2684.3,2683.9,3.72588]
[1739737832823,0.7727,2684.3,2684.0,3.72571]
[1739737833124,0.7727,2684.3,2683.7,5.25834387]
[1739737833125,4.49806,2684.3,2683.8,3.72592]
[1739737833327,4.49806,2684.3,2683.7,8.98442387]
[1739737833328,0.7727,2684.3,2683.7,8.98442387]
[1739737833626,0.7727,2684.3,2683.9,3.7259]
[1739737836117,0.7727,2684.3,2683.9,7.45174]
[1739737836427,0.7727,2684.3,2684.0,3.72572]
[1739737836625,0.7727,2684.3,2683.9,3.72583]
[1739737837486,0.7727,2684.3,2683.9,7.45168]
[1739737839231,4.49806,2684.3,2683.9,3.72583]
[1739737839730,0.7727,2684.3,2683.9,3.72583]
[1739737841336,0.7727,2684.3,2684.0,3.72577]
[1739737841487,0.7727,2684.3,2683.9,3.72583]
[1739737841693,0.7727,2684.3,2684.0,3.72575]
[1739737842805,0.7727,2684.3,2683.8,3.72601]
[1739737843006,0.7727,2684.3,2683.9,3.7259]
[1739737843613,0.7727,2684.3,2683.9,3.72592]
[1739737844740,0.04657249,2684.2,2683.7,5.25834387]
[1739737844939,3.72586,2684.0,2683.7,5.25834387]
[1739737845146,0.766,2683.8,2683.7,5.25834387]
[1739737845343,0.766,2683.8,2683.4,3.72661]
[1739737849649,0.766,2683.8,2683.5,3.72638]
[1739737853166,0.766,2683.8,2683.3,8.98499387]
[1739737853378,4.49206,2683.8,2683.4,3.72658]
[1739737853528,0.766,2683.8,2683.4,3.72653]
[1739737854329,4.49212,2683.8,2683.3,8.98501387]
[1739737854527,0.766,2683.8,2683.4,3.72661]
[1739737855027,4.49208,2683.8,2683.4,3.72661]
[1739737855229,0.766,2683.8,2683.4,3.72661]
[1739737856396,4.53867954,2683.8,2683.4,3.72661]
[1739737857298,4.53867954,2683.8,2683.3,8.98505387]
[1739737858150,3.72624,2683.7,2683.3,5.25834387]
[1739737858354,4.58953954,2683.6,2683.3,5.25834387]
[1739737858595,4.54296,2683.6,2683.3,5.25834387]
[1739737858957,3.72656,2683.5,2683.3,5.25834387]
[1739737859472,0.8166,2683.4,2683.3,5.25834387]
[1739737861099,0.8166,2683.4,2683.2,8.87]
[1739737861100,0.8166,2683.4,2682.9,5.25834387]
[1739737861303,3.77336755,2683.3,2682.9,5.25834387]
[1739737861472,3.72678,2683.3,2682.9,5.25834387]
[1739737861672,4.54322,2683.4,2682.9,8.98559387]
[1739737862562,0.8166,2683.4,2683.0,3.72714]
[1739737863100,4.54321,2683.4,2683.0,3.72714]
[1739737863310,4.54321,2683.4,2682.9,5.25834387]
[1739737863311,0.8166,2683.4,2682.9,5.25834387]
[1739737863609,0.8166,2683.4,2682.9,8.98563387]
[1739737863855,0.8166,2683.4,2683.0,3.72707]
[1739737864842,4.54325,2683.4,2683.0,3.72707]
[1739737865356,0.8166,2683.4,2683.0,3.72707]
[1739737866315,0.8166,2683.4,2683.0,7.45415]
[1739737866729,0.8166,2683.4,2683.0,3.72707]
[1739737867819,0.8166,2683.4,2683.1,3.72695]
[1739737868154,0.8166,2683.4,2683.0,7.45434]
[1739737868352,0.8166,2683.4,2682.9,5.25834387]
[1739737868553,3.72691,2683.2,2682.9,5.25834387]
[1739737869150,0.8166,2683.1,2682.9,5.25834387]
[1739737869349,3.72717,2683.0,2682.9,5.25834387]
[1739737870270,4.554252,2683.0,2682.9,5.25834387]
[1739737872062,0.7624,2682.9,2682.5,5.25834387]
[1739737872221,3.7277,2682.7,2682.5,5.25834387]
[1739737873277,3.72769,2682.7,2682.5,5.25834387]
[1739737873622,3.72772,2682.6,2682.5,5.25834387]
[1739737874261,5.28225723,2682.6,2682.5,5.25834387]
[1739737874823,5.235661,2682.6,2682.5,5.25834387]
[1739737875036,3.72828,2682.2,2682.1,8.87]
[1739737875239,3.72828,2682.2,2681.8,2.35286597]
[1739737875767,4.49061,2682.3,2681.8,6.08166597]
[1739737876163,4.49066,2682.3,2681.8,6.08166597]
[1739737876565,3.7283,2682.2,2681.8,0.7923]
[1739737877140,3.7285,2682.1,2681.8,0.7923]
[1739737877356,3.7283,2682.2,2681.8,0.7923]
[1739737878686,0.7624,2682.3,2681.8,0.7923]
[1739737878870,4.49058,2682.3,2681.8,4.521]
[1739737879072,3.72787,2682.5,2681.9,3.25828658]
[1739737879395,3.72824,2682.3,2681.8,1.42120591]
[1739737879545,4.49064,2682.3,2681.8,0.7923]
[1739737879743,4.49064,2682.3,2681.8,4.52111]
[1739737880482,4.49064,2682.3,2681.8,9.77945387]
[1739737880992,3.72829,2682.2,2681.8,5.25834387]
[1739737881175,3.72856,2682.1,2681.8,5.25834387]
[1739737881670,3.72829,2682.2,2681.8,5.25834387]
[1739737882044,7.45667,2682.2,2681.8,5.25834387]
[1739737882392,4.59556944,2682.2,2681.8,5.25834387]
[1739737883660,0.7624,2682.3,2681.9,4.52096]
[1739737883865,0.7624,2682.3,2681.9,0.7923]
[1739737884096,0.7624,2682.3,2681.9,4.52099]
[1739737884252,0.7624,2682.3,2681.9,0.7923]
[1739737884647,4.49057,2682.3,2681.9,0.7923]
[1739737886187,3.72828,2682.2,2681.9,0.7923]
[1739737886491,3.72828,2682.2,2681.8,8.98709387]
[1739737888993,0.7624,2682.3,2681.9,3.72861]
[1739737889693,0.7624,2682.3,2682.0,3.72852]
[1739737889859,0.7624,2682.3,2681.9,3.72866]
[1739737890066,4.49057,2682.3,2681.8,5.25834387]
[1739737890275,3.72828,2682.2,2681.8,8.98717387]
[1739737890791,4.49055,2682.3,2681.8,5.25834387]
[1739737890975,5.312412,2682.3,2681.8,8.98710387]
[1739737891912,5.312402,2682.3,2681.8,8.98710387]
[1739737892439,5.312402,2682.3,2681.8,3.72876]
[1739737894423,3.72833,2682.2,2681.7,8.24171]
[1739737895013,3.72833,2682.2,2681.7,4.51285]
[1739737895189,3.72833,2682.2,2681.8,3.72882]
[1739737895390,5.312452,2682.3,2681.8,3.72882]
[1739737895790,3.7283,2682.2,2681.8,3.72882]
[1739737896203,3.7283,2682.2,2681.7,0.784]
[1739737896402,3.7283,2682.2,2681.7,4.5129]
[1739737897513,3.7283,2682.2,2681.7,0.784]
[1739737897514,4.6323452,2682.2,2681.7,0.784]
[1739737897719,3.72848,2682.1,2681.7,0.784]
[1739737897876,3.72848,2682.1,2681.7,4.51297]
[1739737898399,0.8076,2681.9,2681.7,5.25834387]
[1739737898599,4.53637,2681.9,2681.7,5.25834387]
[1739737898800,9.091626,2681.9,2681.4,9.77165387]
[1739737899106,9.091636,2681.9,2681.4,9.77165387]
[1739737899297,3.7754735,2681.8,2681.4,5.25834387]
[1739737899800,3.7754635,2681.8,2681.2,6.04234387]
[1739737900000,3.7754635,2681.8,2681.2,8.98800387]
[1739737900001,5.07759495,2681.7,2681.2,8.98800387]
[1739737900223,3.72911,2681.6,2681.2,8.98800387]
[1739737900791,3.72911,2681.6,2681.2,5.25834387]
[1739737901477,1.34855495,2681.7,2681.2,8.98793387]
[1739737901691,5.07754495,2681.7,2681.2,8.98793387]
[1739737902317,0.8806445,2681.6,2681.2,8.98793387]
[1739737902503,0.8076,2681.7,2681.3,3.72951]
[1739737902829,0.8076,2681.7,2681.4,3.72935]
[1739737903282,0.8076,2681.7,2681.4,3.72929]
[1739737903477,0.7509,2682.0,2681.8,3.72878]
[1739737903712,4.4792,2682.2,2681.5,3.72923]
[1739737903874,3.72844,2682.1,2681.7,3.72891]
[1739737904078,3.72844,2682.1,2681.5,7.45834]
[1739737904398,3.72844,2682.1,2681.6,3.72904]
[1739737905800,3.72863,2682.0,2681.5,3.72911]
[1739737905994,3.72897,2681.8,2681.4,0.8196]
[1739737906231,0.7509,2681.7,2681.3,3.72945]
[1739737906433,0.7509,2681.7,2681.3,7.45888]
[1739737906704,0.7509,2681.7,2681.4,3.72937]
[1739737906937,0.7509,2681.7,2681.2,6.07794387]
[1739737907145,0.7509,2681.7,2681.3,3.7295]
[1739737907745,0.7509,2681.7,2681.2,6.07794387]
[1739737908043,4.927854,2681.7,2681.2,9.80752387]
[1739737909051,4.927854,2681.7,2681.2,5.25834387]
[1739737909052,3.72918,2681.6,2681.2,5.25834387]
[1739737909539,4.927854,2681.7,2681.2,8.98793387]
[1739737909746,4.927854,2681.7,2681.2,5.25834387]
[1739737909943,4.927854,2681.7,2681.2,8.98800387]
[1739737910107,0.4927854,2681.6,2681.2,5.25834387]
[1739737910308,3.72926,2681.5,2681.2,5.25834387]
[1739737910836,0.4927854,2681.6,2681.2,8.98800387]
[1739737911036,4.2219654,2681.6,2681.2,5.25834387]
[1739737911421,0.4927854,2681.6,2681.2,8.98799387]
[1739737911603,3.72915,2681.6,2681.2,5.25834387]
[1739737912450,3.72919,2681.6,2681.2,5.25834387]
[1739737912946,0.7509,2681.3,2680.9,8.98834387]
[1739737913106,0.7509,2681.3,2680.9,5.25834387]
[1739737913306,0.7509,2681.3,2680.9,8.98840387]
[1739737913520,4.48043,2681.3,2680.9,8.98840387]
[1739737913821,4.48043,2681.3,2680.9,3.73006]
[1739737914018,0.7509,2681.3,2680.9,3.73006]
[1739737914906,0.7509,2681.3,2680.9,7.46008]
[1739737915446,0.7509,2681.3,2681.0,3.72992]
[1739737915745,3.8222,2681.6,2681.2,3.72967]
[1739737915914,0.755127,2681.5,2681.3,3.72945]
[1739737916111,0.8222,2681.6,2681.1,3.72981]
[1739737916312,4.55132,2681.6,2681.1,3.72981]
[1739737918251,4.55132,2681.6,2681.0,3.72984]
[1739737918252,0.8222,2681.4,2681.0,3.72984]
[1739737918859,4.55161,2681.4,2681.0,3.72984]
[1739737919152,4.55161,2681.4,2680.9,3.73008]
[1739737919312,4.55161,2681.4,2680.8,9.80807387]
[1739737919313,0.455161,2681.3,2681.0,3.72992]
[1739737920488,0.455161,2681.3,2680.8,6.07794387]
[1739737920643,0.04662358,2681.2,2680.9,7.46005]
[1739737920849,0.04662357,2681.3,2681.0,3.72994]
[1739737921273,3.77616357,2681.3,2680.9,3.72998]
[1739737921584,0.8222,2681.1,2680.8,5.25834387]
[1739737921757,0.8222,2681.1,2680.7,3.73035]
[1739737921957,0.8222,2681.1,2680.8,3.73022]
[1739737922173,0.04662773,2681.0,2680.8,3.73022]
[1739737922373,0.04662773,2681.0,2680.5,3.73054]
[1739737922374,0.04662773,2681.0,2680.7,3.73036]
[1739737922563,0.8222,2681.1,2680.4,9.25404494]
[1739737922769,0.8222,2681.1,2680.8,3.73011]
[1739737923093,0.8222,2681.1,2680.9,3.73006]
[1739737923745,0.8222,2681.1,2680.6,3.7304]
[1739737923946,0.04662772,2681.0,2680.7,3.73034]
[1739737924416,0.04662772,2681.0,2680.7,3.73036]
[1739737924707,0.8222,2681.1,2680.7,3.73036]
[1739737925490,0.04662773,2681.0,2680.7,3.73036]
[1739737926296,0.04662773,2681.0,2680.6,3.7304]
[1739737926597,4.55214,2681.1,2680.6,3.7304]
[1739737926750,1.650377,2681.1,2680.7,3.73029]
[1739737927494,0.8222,2681.1,2680.7,3.73029]
[1739737927903,0.8222,2681.1,2680.8,3.73012]
[1739737928090,0.8222,2681.1,2680.9,3.73005]
[1739737931071,5.0253176,2681.4,2680.9,3.73001]
[1739737931695,3.72953,2681.3,2680.6,4.49322]
[1739737931894,0.7944,2681.0,2680.4,5.25834387]
[1739737932095,0.7944,2680.8,2680.3,3.73085]
[1739737932282,4.52469,2680.8,2680.3,3.73085]
[1739737932611,3.7304,2680.7,2680.2,3.73095]
[1739737932778,4.52469,2680.8,2680.3,3.73087]
[1739737932985,5.350118,2680.8,2680.4,3.73077]
[1739737933182,5.350118,2680.8,2680.2,3.73094]
[1739737933383,5.350118,2680.8,2680.3,3.73092]
[1739737933582,0.7944,2680.7,2680.3,3.73092]
[1739737934623,0.7944,2680.7,2680.4,3.73077]
[1739737934770,0.7944,2680.7,2680.3,3.73092]
[1739737934970,0.7944,2680.6,2680.1,8.98947387]
[1739737935314,4.52499,2680.6,2680.1,8.98947387]
[1739737935807,4.52499,2680.6,2680.1,5.25834387]
[1739737936502,4.52499,2680.6,2680.1,8.98952387]
[1739737937108,4.52499,2680.6,2680.2,3.73105]
[1739737937314,1.67342918,2680.6,2680.3,3.73088]
[1739737937610,1.67342918,2680.6,2680.4,3.73074]
[1739737937611,0.7944,2680.6,2680.4,3.73074]
[1739737937770,0.7944,2680.6,2680.4,3.73071]
[1739737938201,0.7944,2680.6,2680.5,3.73064]
[1739737938403,0.7944,2680.6,2680.3,3.73082]
[1739737939202,0.7944,2680.6,2680.1,3.73112]
[1739737939409,4.52497,2680.6,2680.1,7.46225]
[1739737939610,4.52497,2680.6,2680.1,7.46224]
[1739737939800,0.7944,2680.6,2680.2,3.73098]
[1739737940114,0.7944,2680.6,2680.3,3.7309]
[1739737940309,0.7944,2680.6,2680.4,3.73077]
[1739737940616,0.7944,2680.6,2680.4,3.73078]
[1739737940914,0.7944,2680.6,2680.3,3.73084]
[1739737941278,0.7944,2680.6,2680.2,7.46195]
[1739737941474,0.7944,2680.6,2679.9,0.7628]
[1739737941475,0.7944,2680.6,2680.3,3.73082]
[1739737942616,0.7944,2680.6,2680.4,3.7307]
[1739737943521,0.7944,2680.6,2680.4,3.73077]
[1739737944628,0.8061,2681.1,2680.4,0.746173]
[1739737944926,0.8061,2681.1,2680.8,3.73012]
[1739737945692,0.8061,2681.1,2680.4,6.95176107]
[1739737945888,3.73001,2681.0,2680.5,3.73061]
[1739737946224,4.53591,2681.1,2680.6,3.73044]
[1739737948127,4.53591,2681.1,2680.5,3.73061]
[1739737948428,4.183571,2681.0,2680.5,3.73057]
[1739737949005,3.7301,2680.9,2680.5,3.73057]
[1739737949332,4.183541,2681.0,2680.5,7.46114]
[1739737950524,4.183541,2681.0,2680.5,7.46113]
[1739737950829,4.183541,2681.0,2680.6,3.7305]
[1739737951237,0.453591,2681.0,2680.6,3.7305]
[1739737952344,0.8119,2680.8,2680.5,3.73061]
[1739737952640,0.8119,2680.8,2680.4,3.73077]
[1739737952794,0.8119,2680.8,2680.5,3.73064]
[1739737953537,0.8119,2680.8,2680.4,3.73071]
[1739737953903,0.8119,2680.8,2680.5,3.73061]
[1739737954325,0.8119,2680.8,2680.6,3.73046]
[1739737955232,0.8119,2680.8,2680.5,7.46115]
[1739737955591,0.8119,2680.8,2680.5,3.73054]
[1739737955794,0.8119,2680.8,2680.6,3.7305]
[1739737956717,0.8119,2680.8,2680.5,3.73054]
[1739737957342,1.639091,2680.8,2680.3,7.46166]
[1739737957507,4.54228,2680.7,2680.3,3.73081]
[1739737957750,3.73051,2680.6,2680.2,3.73106]
[1739737958067,0.8119,2680.7,2680.2,3.73106]
[1739737958222,4.54227,2680.7,2680.1,3.7311]
[1739737958651,0.8119,2680.7,2680.3,3.73083]
[1739737960669,4.54235,2680.7,2680.3,3.73092]
[1739737960826,5.369595,2680.7,2680.3,3.73092]
[1739737962672,0.7807,2680.6,2680.3,3.73092]
[1739737963173,0.7807,2680.6,2680.2,3.73102]
[1739737963329,4.51129,2680.6,2680.1,3.73109]
[1739737963726,4.51129,2680.6,2680.2,3.73106]
[1739737963927,5.4181885,2680.6,2680.1,3.73109]
[1739737964269,5.4181885,2680.6,2680.1,7.4622]
[1739737964668,1.6875985,2680.6,2680.1,3.73109]
[1739737964869,0.7807,2680.6,2680.2,3.73103]
[1739737965274,4.51122,2680.6,2680.2,3.73103]
[1739737965566,3.73065,2680.5,2680.0,3.73122]
[1739737965790,4.51122,2680.6,2680.1,3.73113]
[1739737965943,0.824167,2680.5,2680.1,3.73113]
[1739737966273,0.7807,2680.4,2680.2,3.73104]
[1739737970783,0.7807,2680.4,2680.0,3.73125]
[1739737970939,0.7807,2680.4,2680.1,3.73119]
[1739737972477,0.7807,2680.4,2680.2,3.73104]
[1739737975579,0.7807,2680.4,2680.2,7.46203]
[1739737976151,0.7807,2680.4,2680.2,3.73099]
[1739737976361,0.7807,2680.4,2680.2,3.73098]
[1739737978892,0.7807,2680.4,2680.2,3.73097]
[1739737979194,0.7807,2680.4,2680.2,3.73101]
[1739737980372,0.7807,2680.4,2680.3,3.73092]
[1739737980674,0.7807,2680.4,2680.2,3.73101]
[1739737982039,0.7807,2680.4,2680.2,3.731]
[1739737982337,0.7807,2680.4,2680.2,3.73097]
[1739737984085,0.7807,2680.4,2680.2,7.46193]
[1739737984388,0.7807,2680.4,2680.2,3.73096]
[1739737984754,0.7807,2680.4,2680.2,7.46196]
[1739737985000,0.7807,2680.4,2680.3,3.73092]
[1739737985186,0.7807,2680.4,2680.2,7.4619]
[1739737985482,3.7706,2680.9,2680.5,3.73055]
[1739737985674,3.7706,2680.9,2680.6,3.73047]
[1739737986378,3.7706,2680.9,2680.3,5.29471235]
[1739737986555,7.50076,2680.9,2680.4,3.7307]
[1739737987784,3.7706,2680.9,2680.5,3.73057]
[1739737987940,1.89368,2680.9,2680.6,3.73042]
[1739737988370,0.7706,2680.9,2680.6,3.73042]
[1739737992489,0.7706,2680.9,2680.5,3.73063]
[1739737992863,4.50071,2680.9,2680.5,3.73063]
[1739737993552,0.7706,2680.9,2680.5,3.73063]
[1739737993943,0.7706,2680.9,2680.5,3.73058]
[1739737994292,0.7706,2680.9,2680.6,3.73043]
[1739737994693,0.7899,2681.2,2680.8,3.7301]
[1739737994846,0.7899,2681.2,2680.9,3.73006]
[1739737995046,0.7899,2681.2,2680.8,3.73022]
[1739737995906,0.7899,2681.2,2680.9,3.73007]
[1739737996107,0.7899,2681.2,2680.8,3.73022]
[1739737997710,0.04662601,2681.1,2680.8,3.73022]
[1739737998507,0.7899,2681.2,2680.8,3.73022]
[1739737999301,0.046626,2681.1,2680.8,3.73022]
[1739737999597,0.7899,2681.2,2680.8,3.73022]
[1739737999760,0.04662599,2681.1,2680.8,3.73022]
[1739738000206,0.7899,2681.2,2680.8,3.73022]
[1739738000501,0.7899,2681.2,2680.8,3.73011]
[1739738001405,1.29313257,2681.2,2680.5,5.29454235]
[1739738001607,4.52009,2680.9,2680.4,3.73068]
[1739738001907,0.04663179,2680.8,2680.4,7.46139]
[1739738002704,0.04663179,2680.8,2680.4,7.46135]
[1739738003001,4.52009,2680.9,2680.4,7.46135]
[1739738003306,4.56672261,2680.9,2680.4,7.46135]
[1739738003708,4.52009,2680.9,2680.4,7.46135]
[1739738004207,0.7899,2680.9,2680.5,3.73063]
[1739738004993,4.52,2680.9,2680.5,3.73063]
[1739738005391,4.52,2680.9,2680.5,3.73056]
[1739738005392,0.7899,2680.9,2680.5,3.73056]
[1739738005568,0.7899,2680.9,2680.7,3.73035]
[1739738005773,0.7899,2680.9,2680.5,4.103616]
[1739738006081,0.7899,2680.9,2680.7,3.73034]
[1739738007210,3.785,2681.2,2680.7,3.73034]
[1739738007413,0.785,2681.2,2680.9,3.73007]
[1739738007577,0.785,2681.2,2681.0,3.72993]
[1739738008806,0.785,2681.2,2680.9,3.73007]
[1739738008979,0.785,2681.2,2680.5,4.935666]
[1739738009167,0.785,2681.2,2680.9,3.73]
[1739738009515,0.785,2681.2,2680.9,7.46002]
[1739738009817,0.785,2681.2,2681.0,3.72982]
[1739738010354,0.785,2681.2,2681.1,3.72981]
[1739738011583,0.785,2681.2,2680.6,3.71858405]
[1739738011785,0.785,2681.2,2681.0,3.72993]
[1739738012481,0.785,2681.2,2681.0,7.45981]
[1739738012672,0.785,2681.2,2681.0,7.45975]
[1739738012873,0.785,2681.2,2681.0,7.45973]
[1739738013741,0.785,2681.2,2681.0,3.72986]
[1739738013875,0.04662495,2681.1,2680.9,3.73006]
[1739738016814,0.04662495,2681.1,2680.8,3.73021]
[1739738016984,4.51502,2681.0,2680.3,3.73092]
[1739738017182,0.04663217,2680.9,2680.3,3.73092]
[1739738017387,0.04663217,2680.9,2680.4,3.73078]
[1739738017576,0.785,2680.8,2680.5,3.73063]
[1739738018013,0.785,2680.8,2680.6,3.73043]
[1739738018322,0.785,2680.8,2680.5,3.73063]
[1739738018609,0.785,2680.8,2680.5,3.73057]
[1739738018780,0.785,2680.8,2680.5,7.46113]
[1739738018986,0.785,2680.8,2680.5,7.46112]
[1739738019473,0.785,2680.8,2680.6,3.7305]
[1739738020506,0.785,2680.8,2680.4,3.73065]
[1739738020672,0.83163212,2680.8,2680.4,3.73065]
[1739738020868,0.785,2680.8,2680.5,3.73063]
[1739738022408,0.7903,2680.5,2679.8,3.73162]
[1739738022795,3.73079,2680.4,2680.0,3.73133]
[1739738022995,3.73079,2680.4,2679.8,7.4631]
[1739738023199,0.7903,2680.3,2679.6,0.7817]
[1739738023417,4.52124,2680.3,2679.8,3.73161]
[1739738023789,0.7903,2680.3,2679.8,3.73161]
[1739738023990,0.7903,2680.3,2679.9,3.73147]
[1739738024913,0.7903,2680.3,2679.7,3.73172]
[1739738025124,4.52125,2680.3,2679.8,3.73159]
[1739738025999,4.181736,2680.8,2679.5,0.55]
[1739738026000,0.7903,2680.1,2679.5,0.55]
[1739738026301,0.04664548,2680.2,2679.5,0.55]
[1739738026302,3.73178,2679.7,2679.5,0.55]
[1739738026813,3.0,2680.0,2679.6,3.73188]
[1739738027014,0.7903,2680.0,2679.6,3.73179]
[1739738027231,0.7903,2680.0,2679.7,3.73175]
[1739738028317,0.04664663,2679.9,2679.5,8.79562]
[1739738028678,0.7903,2680.0,2679.6,3.73184]
[1739738031720,0.0466466,2679.9,2679.5,1.3317]
[1739738032015,0.0466466,2679.9,2679.5,5.06365]
[1739738032199,4.52164,2680.0,2679.5,5.06365]
[1739738032394,0.7903,2680.0,2679.5,1.3317]
[1739738032600,0.7903,2680.0,2679.7,3.73174]
[1739738033222,0.7903,2680.0,2679.6,3.73187]
[1739738034038,0.04664658,2679.9,2679.5,4.28203]
[1739738034247,0.7903,2679.8,2679.5,0.55]
[1739738034535,4.56859117,2679.8,2679.5,0.55]
[1739738035343,4.52194,2679.8,2679.5,0.55]
[1739738035642,0.7903,2679.8,2679.5,0.55]
[1739738036135,0.7903,2679.8,2679.5,4.28202]
[1739738037104,7.48531,2680.1,2679.6,3.73189]
[1739738037505,0.7541,2680.1,2679.7,3.73171]
[1739738037708,0.7541,2680.1,2679.8,3.73155]
[1739738038104,0.7541,2680.3,2679.5,2.163131]
[1739738038312,0.18724879,2680.5,2680.1,3.73113]
[1739738038313,0.7541,2680.5,2680.1,3.73113]
[1739738038538,0.448468,2680.4,2680.1,3.73113]
[1739738038737,3.7541,2680.5,2680.1,3.73113]
[1739738039458,3.73079,2680.4,2680.0,0.8117]
[1739738040945,3.77758969,2680.3,2679.8,4.54331]
[1739738041142,0.04663969,2680.3,2679.8,4.54331]
[1739738041460,3.7541,2680.5,2680.0,3.73132]
[1739738041612,8.25202991,2680.5,2680.0,3.73132]
[1739738042456,8.25202991,2680.5,2679.8,4.54323]
[1739738042671,3.77745967,2680.4,2679.9,3.73141]
[1739738042961,3.73082,2680.4,2679.9,3.73141]
[1739738043560,8.25202991,2680.5,2679.8,0.8117]
[1739738043719,8.25202991,2680.5,2680.1,3.73119]
[1739738043918,8.25202991,2680.5,2679.9,3.73141]
[1739738044117,8.25202991,2680.5,2680.0,3.73125]
[1739738044950,7.48476,2680.5,2680.0,3.73125]
[1739738045414,3.7541,2680.5,2680.2,3.73105]
[1739738045634,3.7541,2680.5,2680.1,3.73112]
[1739738046213,3.7541,2680.5,2680.1,3.7312]
[1739738046759,3.7541,2680.5,2680.2,3.73104]
[1739738046960,0.7541,2680.9,2680.4,3.7307]
[1739738047167,3.73048,2680.7,2680.2,4.54275]
[1739738047335,4.48463,2680.6,2680.1,3.7311]
[1739738047719,4.48463,2680.6,2680.1,7.46222]
[1739738048540,4.48463,2680.6,2680.2,3.73106]
[1739738048724,4.48463,2680.6,2680.2,3.73103]
[1739738049432,0.7541,2680.6,2680.2,3.73103]
[1739738050061,4.48461,2680.6,2680.2,3.73103]
[1739738051717,4.48461,2680.6,2680.2,3.731]
[1739738051718,0.7541,2680.6,2680.2,3.731]
[1739738055270,0.7541,2680.6,2680.3,3.73089]
[1739738055784,0.7541,2680.6,2680.0,4.543]
[1739738055941,0.7541,2680.6,2680.0,5.37046]
[1739738057088,0.7541,2680.6,2680.2,3.73095]
[1739738058583,4.48462,2680.6,2680.2,3.73095]
[1739738060290,8.21526,2680.6,2680.1,3.73119]
[1739738060471,0.777,2680.3,2679.9,3.73139]
[1739738061404,4.50793,2680.3,2679.9,3.73139]
[1739738061615,4.50793,2680.3,2679.8,3.73162]
[1739738061756,0.777,2680.3,2679.7,3.73173]
[1739738061961,0.777,2680.3,2679.9,3.73146]
[1739738062854,0.777,2680.3,2680.1,3.73117]
[1739738063061,0.777,2680.5,2680.2,3.73106]
[1739738063385,3.73031,2680.8,2680.3,3.73086]
[1739738063386,3.73025,2680.8,2680.3,3.73086]
[1739738063590,0.777,2680.7,2680.3,3.73089]
[1739738063758,0.777,2680.7,2680.4,3.73071]
[1739738064274,4.50696,2681.0,2680.4,1.141771]
[1739738064580,4.50696,2681.0,2680.4,4.49934]
[1739738064879,0.777,2681.0,2680.6,3.73046]
[1739738065759,0.777,2681.0,2680.6,3.7305]
[1739738066147,0.777,2681.0,2680.7,3.73029]
[1739738066713,0.7949,2681.4,2681.0,3.72984]
[1739738066867,0.7949,2681.4,2680.8,3.73013]
[1739738067071,0.7949,2681.4,2680.9,3.73009]
[1739738067671,0.7949,2681.4,2680.8,3.73013]
[1739738068074,0.7949,2681.4,2681.0,7.45982]
[1739738068293,0.7949,2681.4,2681.0,3.72991]
[1739738068467,0.7949,2681.4,2681.0,4.102901]
[1739738068670,0.7949,2681.4,2681.0,4.102861]